fUSD/lending_fUSD_20240118
["ID","MTS","AMOUNT","RATE_DAILY","PERIOD"]
[312000517,1705540232383,-158.56,0.00022097,2]
[312000518,1705540232393,-800.0,0.0002211,2]
[312000519,1705540232402,-150.0,0.00022147,2]
[312000520,1705540232412,-196.76,0.00022147,2]
[312000521,1705540232422,-520.74231327,0.00022151,2]
[312000522,1705540232432,-192.018135,0.00022156,2]
[312000523,1705540232443,-269.63462585,0.00022156,2]
[312000524,1705540232452,-875.89540556,0.00022157,2]
[312000525,1705540232462,-206.19924753,0.00022157,2]
[312000526,1705540232472,-827.48898126,0.00022157,2]
[312000527,1705540232481,-158.36302786,0.00022157,2]
[312000528,1705540232490,-282.64689268,0.00022157,2]
[312000529,1705540232500,-155.0,0.00022157,2]
[312000530,1705540232509,-1393.53159351,0.00022157,2]
[312000531,1705540232518,-157.15051088,0.00022157,2]
[312000532,1705540232528,-348.169059,0.00022157,2]
[312000533,1705540232537,-300.0,0.00022157,2]
[312000534,1705540232546,-204.07310533,0.00022157,2]
[312000535,1705540232556,-168.71243974,0.00022157,2]
[312000536,1705540232565,-152955.18812408,0.00022157,2]
[312000537,1705540232579,-4405.86564186,0.00022157,2]
[312000538,1705540232589,-359.2386,0.00022157,2]
[312000539,1705540232598,-269.63462585,0.00022157,2]
[312000540,1705540232608,-263.27381778,0.00022158,2]
[312000541,1705540232617,-18327.53837023,0.00022158,2]
[312000542,1705540232627,-500.0,0.00022158,2]
[312000543,1705540232636,-795.26,0.00022158,2]
[312000544,1705540232646,-500.0,0.00022158,2]
[312000545,1705540232655,-500.0,0.00022158,2]
[312000546,1705540232664,-500.0,0.00022158,2]
[312000547,1705540232674,-3355.92,0.00022158,2]
[312000548,1705540232683,-500.0,0.00022158,2]
[312000549,1705540232693,-1398.78,0.00022158,2]
[312000550,1705540232702,-1603.97,0.00022158,2]
[312000551,1705540232712,-545.85,0.00022158,2]
[312000552,1705540232721,-500.0,0.00022158,2]
[312000553,1705540232731,-500.0,0.00022158,2]
[312000554,1705540232740,-659.66,0.00022158,2]
[312000555,1705540232750,-500.0,0.00022158,2]
[312000556,1705540232759,-500.0,0.00022158,2]
[312000557,1705540232769,-500.0,0.00022158,2]
[312000558,1705540232778,-500.0,0.00022158,2]
[312000559,1705540232788,-269.63462585,0.00022158,2]
[312000560,1705540232798,-7308.05,0.00022158,2]
[312000561,1705540232807,-1068.18,0.00022158,2]
[312000562,1705540232817,-500.0,0.00022158,2]
[312000563,1705540232826,-1502.22,0.00022158,2]
[312000564,1705540232837,-500.0,0.00022158,2]
[312000565,1705540232846,-500.0,0.00022158,2]
[312000566,1705540232856,-530.1,0.00022158,2]
[312000567,1705540232866,-500.0,0.00022158,2]
[312000568,1705540232876,-500.0,0.00022158,2]
[312000569,1705540232886,-2855.16,0.00022158,2]
[312000570,1705540232895,-500.0,0.00022158,2]
[312000571,1705540232905,-500.0,0.00022158,2]
[312000572,1705540232914,-823.89,0.00022158,2]
[312000573,1705540232923,-579.6,0.00022158,2]
[312000574,1705540232933,-1406.56,0.00022158,5]
[312000575,1705540232942,-1000.0,0.00022159,2]
[312000576,1705540232962,-424.6498,0.00022159,2]
[312000577,1705540232973,-31443.0423,0.00022159,2]
[312000578,1705540232982,-55555.0,0.00022159,2]
[312000579,1705540232992,-5000.0,0.0002216,2]
[312000580,1705540233003,-500.0,0.00022191,2]
[312000581,1705540233012,-500.0,0.00022191,2]
[312000582,1705540233023,-500.0,0.00022191,2]
[312000583,1705540233032,-371.56,0.00022192,2]
[312000584,1705540233042,-150.0,0.00022192,2]
[312000585,1705540233052,-1538.74,0.000222,2]
[312000586,1705540233062,-162.57,0.00022236,2]
[312000587,1705540233072,-520.74231327,0.00022244,2]
[312000588,1705540233082,-150.0,0.00022247,2]
[312000589,1705540233092,-500.0,0.00022256,2]
[312000590,1705540233101,-4172.73,0.00022256,2]
[312000591,1705540233111,-1863.54155458,0.00022256,2]
[312000592,1705540233124,-2794.17844542,0.00022256,2]
[312000593,1705540233134,-500.0,0.00022256,2]
[312000594,1705540233143,-1595.67,0.00022256,2]
[312000595,1705540233153,-1235.38,0.00022256,2]
[312000596,1705540233162,-10949.33,0.00022256,2]
[312000597,1705540233172,-773.21,0.00022256,2]
[312000598,1705540233182,-573.14,0.00022256,2]
[312000599,1705540233191,-500.0,0.00022256,2]
[312000600,1705540233201,-2715.97,0.00022256,2]
[312000601,1705540233210,-500.0,0.00022256,2]
[312000602,1705540233220,-500.0,0.00022256,2]
[312000603,1705540233229,-500.0,0.00022256,2]
[312000604,1705540233239,-500.0,0.00022256,2]
[312000605,1705540233249,-500.0,0.00022256,2]
[312000606,1705540233260,-99.6988568,0.00022256,2]
[312000607,1705540233273,-400.3011432,0.00022256,2]
[312000608,1705540233282,-500.0,0.00022256,2]
[312000609,1705540233293,-770.69,0.00022256,2]
[312000610,1705540233306,-500.0,0.00022256,2]
[312000611,1705540233317,-2414.78,0.00022256,2]
[312000612,1705540233328,-3338.37108781,0.00022256,2]
[312000613,1705540233346,-1826.60891219,0.00022256,2]
[312000614,1705540233356,-936.34,0.00022256,2]
[312000615,1705540233366,-500.0,0.00022256,2]
[312000616,1705540233376,-500.0,0.00022256,2]
[312000617,1705540233386,-1336.3,0.00022256,2]
[312000618,1705540233395,-500.0,0.00022256,2]
[312000619,1705540233405,-500.0,0.00022256,2]
[312000620,1705540233415,-500.0,0.00022256,2]
[312000621,1705540233424,-829.61,0.00022256,2]
[312000622,1705540233434,-500.0,0.00022256,2]
[312000623,1705540233444,-1773.93,0.00022256,2]
[312000624,1705540233454,-500.0,0.00022256,2]
[312000625,1705540233464,-1161.64,0.00022256,2]
[312000626,1705540233473,-2222.68,0.00022256,2]
[312000627,1705540233483,-1598.42,0.00022256,2]
[312000628,1705540233493,-2831.52,0.00022256,2]
[312000629,1705540233504,-1816.15,0.00022256,2]
[312000630,1705540233513,-1721.77,0.00022256,2]
[312000631,1705540233523,-538.29,0.00022256,2]
[312000632,1705540233533,-500.0,0.00022256,2]
[312000633,1705540233543,-500.0,0.00022256,2]
[312000634,1705540233554,-1113.96,0.00022256,2]
[312000635,1705540233564,-2403.64,0.00022256,2]
[312000636,1705540233574,-1000.0,0.00022257,2]
[312000637,1705540233584,-151.0,0.00022257,7]
[312000638,1705540233595,-207.78272895,0.00022257,2]
[312000639,1705540233605,-488.47608906,0.00022257,2]
[312000640,1705540233614,-303.52996515,0.00022257,2]
[312000641,1705540233624,-155.2723803,0.00022257,2]
[312000642,1705540233635,-2959.85465249,0.00022257,2]
[312000643,1705540233645,-336.63955215,0.00022257,2]
[312000644,1705540233655,-530.31943851,0.00022257,2]
[312000645,1705540233665,-2616.61714692,0.00022257,2]
[312000646,1705540233676,-3618.63889774,0.00022257,2]
[312000647,1705540233685,-4624.2344339,0.00022257,2]
[312000648,1705540233696,-28801.67166992,0.00022257,2]
[312000649,1705540233709,-489.11941966,0.00022257,2]
[312000650,1705540233718,-294.11424151,0.00022257,2]
[312000651,1705540233729,-1278.45,0.00022257,2]
[312000652,1705540233740,-500.0,0.00022257,2]
[312000653,1705540233749,-500.0,0.00022257,2]
[312000654,1705540233758,-500.0,0.00022257,2]
[312000655,1705540233768,-500.0,0.00022257,2]
[312000656,1705540233777,-500.0,0.00022257,2]
[312000657,1705540233787,-500.0,0.00022257,2]
[312000658,1705540233797,-500.0,0.00022257,2]
[312000659,1705540233808,-500.0,0.00022257,2]
[312000660,1705540233818,-500.0,0.00022257,2]
[312000661,1705540233828,-500.0,0.00022257,2]
[312000662,1705540233837,-500.0,0.00022257,2]
[312000663,1705540233846,-500.0,0.00022257,2]
[312000664,1705540233856,-500.0,0.00022257,2]
[312000665,1705540233867,-500.0,0.00022257,2]
[312000666,1705540233876,-500.0,0.00022257,2]
[312000667,1705540233886,-500.0,0.00022257,2]
[312000668,1705540233895,-500.0,0.00022257,2]
[312000669,1705540233904,-500.0,0.00022257,2]
[312000670,1705540233914,-500.0,0.00022257,2]
[312000671,1705540233923,-500.0,0.00022257,2]
[312000672,1705540233933,-500.0,0.00022257,2]
[312000673,1705540233942,-500.0,0.00022257,2]
[312000674,1705540233951,-500.0,0.00022257,2]
[312000675,1705540233961,-500.0,0.00022257,2]
[312000676,1705540233970,-500.0,0.00022257,2]
[312000677,1705540233980,-500.0,0.00022257,2]
[312000678,1705540233990,-500.0,0.00022257,2]
[312000679,1705540234000,-500.0,0.00022257,2]
[312000680,1705540234010,-500.0,0.00022257,2]
[312000681,1705540234020,-500.0,0.00022257,2]
[312000682,1705540234031,-500.0,0.00022257,2]
[312000683,1705540234040,-500.0,0.00022257,2]
[312000684,1705540234050,-500.0,0.00022257,2]
[312000685,1705540234060,-500.0,0.00022257,2]
[312000686,1705540234069,-500.0,0.00022257,2]
[312000687,1705540234078,-500.0,0.00022257,2]
[312000688,1705540234088,-500.0,0.00022257,2]
[312000689,1705540234097,-500.0,0.00022257,2]
[312000690,1705540234106,-159.22859289,0.00022257,2]
[312000691,1705540234116,-500.0,0.00022257,2]
[312000692,1705540234125,-500.0,0.00022257,2]
[312000693,1705540234134,-500.0,0.00022257,2]
[312000694,1705540234144,-500.0,0.00022257,2]
[312000695,1705540234153,-500.0,0.00022257,2]
[312000696,1705540234162,-500.0,0.00022257,2]
[312000697,1705540234172,-500.0,0.00022257,2]
[312000698,1705540234181,-500.0,0.00022257,2]
[312000699,1705540234190,-500.0,0.00022257,2]
[312000700,1705540234201,-500.0,0.00022257,2]
[312000701,1705540234210,-500.0,0.00022257,2]
[312000702,1705540234219,-500.0,0.00022257,2]
[312000703,1705540234228,-500.0,0.00022257,2]
[312000704,1705540234238,-500.0,0.00022257,2]
[312000705,1705540234247,-500.0,0.00022257,2]
[312000706,1705540234256,-500.0,0.00022257,2]
[312000707,1705540234266,-500.0,0.00022257,2]
[312000708,1705540234276,-500.0,0.00022257,2]
[312000709,1705540234285,-500.0,0.00022257,2]
[312000710,1705540234295,-500.0,0.00022257,2]
[312000711,1705540234309,-500.0,0.00022257,2]
[312000712,1705540234319,-421.53096081,0.00022257,2]
[312000713,1705540234328,-500.0,0.00022257,2]
[312000714,1705540234339,-500.0,0.00022257,2]
[312000715,1705540234350,-500.0,0.00022257,2]
[312000716,1705540234359,-500.0,0.00022257,2]
[312000717,1705540234368,-500.0,0.00022257,2]
[312000718,1705540234378,-500.0,0.00022257,2]
[312000719,1705540234388,-500.0,0.00022257,2]
[312000720,1705540234397,-500.0,0.00022257,2]
[312000721,1705540234406,-500.0,0.00022257,2]
[312000722,1705540234415,-500.0,0.00022257,2]
[312000723,1705540234425,-500.0,0.00022257,2]
[312000724,1705540234434,-500.0,0.00022257,2]
[312000725,1705540234444,-500.0,0.00022257,2]
[312000726,1705540234453,-500.0,0.00022257,2]
[312000727,1705540234462,-500.0,0.00022257,2]
[312000728,1705540234472,-500.0,0.00022257,2]
[312000729,1705540234481,-500.0,0.00022257,2]
[312000730,1705540234490,-500.0,0.00022257,2]
[312000731,1705540234500,-500.0,0.00022257,2]
[312000732,1705540234509,-191.94311516,0.00022257,2]
[312000733,1705540234518,-500.0,0.00022257,2]
[312000734,1705540234527,-500.0,0.00022257,2]
[312000735,1705540234536,-500.0,0.00022257,2]
[312000736,1705540234545,-500.0,0.00022257,2]
[312000737,1705540234555,-500.0,0.00022257,2]
[312000738,1705540234564,-500.0,0.00022257,2]
[312000739,1705540234573,-500.0,0.00022257,2]
[312000740,1705540234582,-500.0,0.00022257,2]
[312000741,1705540234593,-500.0,0.00022257,2]
[312000742,1705540234603,-500.0,0.00022257,2]
[312000743,1705540234612,-500.0,0.00022257,2]
[312000744,1705540234621,-500.0,0.00022257,2]
[312000745,1705540234630,-500.0,0.00022257,2]
[312000746,1705540234639,-500.0,0.00022257,2]
[312000747,1705540234648,-500.0,0.00022257,2]
[312000748,1705540234657,-500.0,0.00022257,2]
[312000749,1705540234666,-500.0,0.00022257,2]
[312000750,1705540234675,-500.0,0.00022257,2]
[312000751,1705540234684,-212.82,0.00022257,2]
[312000752,1705540234694,-500.0,0.00022257,2]
[312000753,1705540234703,-500.0,0.00022257,2]
[312000754,1705540234712,-500.0,0.00022257,7]
[312000755,1705540234721,-500.0,0.00022257,2]
[312000756,1705540234730,-500.0,0.00022257,2]
[312000757,1705540234739,-500.0,0.00022257,2]
[312000758,1705540234748,-500.0,0.00022257,2]
[312000759,1705540234757,-500.0,0.00022257,2]
[312000760,1705540234766,-500.0,0.00022257,2]
[312000761,1705540234775,-500.0,0.00022257,2]
[312000762,1705540234784,-503.83954388,0.00022257,2]
[312000763,1705540234793,-500.0,0.00022257,2]
[312000764,1705540234802,-500.0,0.00022257,2]
[312000765,1705540234810,-500.0,0.00022257,2]
[312000766,1705540234820,-500.0,0.00022257,2]
[312000767,1705540234829,-500.0,0.00022257,2]
[312000768,1705540234838,-511.90724824,0.00022257,2]
[312000769,1705540234848,-500.0,0.00022257,2]
[312000770,1705540234857,-500.0,0.00022257,2]
[312000771,1705540234866,-500.0,0.00022257,2]
[312000772,1705540234876,-500.0,0.00022257,2]
[312000773,1705540234885,-500.0,0.00022257,2]
[312000774,1705540234894,-500.0,0.00022257,2]
[312000775,1705540234903,-500.0,0.00022257,2]
[312000776,1705540234912,-500.0,0.00022257,2]
[312000777,1705540234921,-500.0,0.00022257,2]
[312000778,1705540234930,-500.0,0.00022257,2]
[312000779,1705540234939,-500.0,0.00022257,2]
[312000780,1705540234948,-523.17,0.00022257,2]
[312000781,1705540234957,-500.0,0.00022257,2]
[312000782,1705540234967,-500.0,0.00022257,2]
[312000783,1705540234975,-500.0,0.00022257,2]
[312000784,1705540234985,-500.0,0.00022257,2]
[312000785,1705540234994,-500.0,0.00022257,2]
[312000786,1705540235004,-500.0,0.00022257,2]
[312000787,1705540235014,-500.0,0.00022257,2]
[312000788,1705540235023,-579.36,0.00022257,2]
[312000789,1705540235033,-150.0,0.00022257,2]
[312000790,1705540235042,-500.0,0.00022257,2]
[312000791,1705540235051,-500.0,0.00022257,2]
[312000792,1705540235061,-872.06,0.00022257,2]
[312000793,1705540235070,-500.0,0.00022257,2]
[312000794,1705540235079,-500.0,0.00022257,2]
[312000795,1705540235089,-500.0,0.00022257,2]
[312000796,1705540235098,-500.0,0.00022257,2]
[312000797,1705540235108,-500.0,0.00022257,2]
[312000798,1705540235117,-500.0,0.00022257,2]
[312000799,1705540235127,-500.0,0.00022257,2]
[312000800,1705540235366,-500.0,0.00022257,2]
[312000801,1705540235377,-500.0,0.00022257,2]
[312000802,1705540235388,-500.0,0.00022257,2]
[312000803,1705540235399,-500.0,0.00022257,2]
[312000804,1705540235409,-500.0,0.00022257,2]
[312000805,1705540235418,-500.0,0.00022257,2]
[312000806,1705540235428,-500.0,0.00022257,2]
[312000807,1705540235437,-500.0,0.00022257,2]
[312000808,1705540235447,-500.0,0.00022257,2]
[312000809,1705540235456,-500.0,0.00022257,2]
[312000810,1705540235466,-500.0,0.00022257,2]
[312000811,1705540235475,-500.0,0.00022257,2]
[312000812,1705540235484,-500.0,0.00022257,2]
[312000813,1705540235493,-500.0,0.00022257,2]
[312000814,1705540235503,-500.0,0.00022257,2]
[312000815,1705540235512,-500.0,0.00022257,2]
[312000816,1705540235522,-500.0,0.00022257,2]
[312000817,1705540235531,-500.0,0.00022257,2]
[312000818,1705540235541,-500.0,0.00022257,2]
[312000819,1705540235550,-500.0,0.00022257,2]
[312000820,1705540235560,-500.0,0.00022257,2]
[312000821,1705540235569,-500.0,0.00022257,2]
[312000822,1705540235578,-500.0,0.00022257,2]
[312000823,1705540235588,-500.0,0.00022257,2]
[312000824,1705540235597,-500.0,0.00022257,2]
[312000825,1705540235606,-500.0,0.00022257,2]
[312000826,1705540235615,-500.0,0.00022257,2]
[312000827,1705540235624,-500.0,0.00022257,2]
[312000828,1705540235633,-500.0,0.00022257,2]
[312000829,1705540235644,-500.0,0.00022257,2]
[312000830,1705540235653,-500.0,0.00022257,2]
[312000831,1705540235663,-515.62,0.00022257,2]
[312000832,1705540235672,-500.0,0.00022257,2]
[312000833,1705540235681,-500.0,0.00022257,2]
[312000834,1705540235690,-248.99334717,0.00022257,2]
[312000835,1705540235699,-504.34,0.00022257,2]
[312000836,1705540235709,-500.0,0.00022257,2]
[312000837,1705540235718,-500.0,0.00022257,2]
[312000838,1705540235727,-600.42,0.00022257,2]
[312000839,1705540235736,-500.0,0.00022257,2]
[312000840,1705540235745,-500.0,0.00022257,2]
[312000841,1705540235754,-505.49084482,0.00022257,2]
[312000842,1705540235764,-500.0,0.00022257,2]
[312000843,1705540235773,-500.0,0.00022257,2]
[312000844,1705540235782,-500.0,0.00022257,2]
[312000845,1705540235791,-500.0,0.00022257,2]
[312000846,1705540235800,-500.0,0.00022257,2]
[312000847,1705540235809,-150.0,0.00022257,2]
[312000848,1705540235819,-500.0,0.00022257,2]
[312000849,1705540235828,-178.7899682,0.00022257,2]
[312000850,1705540235837,-504.82712457,0.00022257,2]
[312000851,1705540235846,-238.52579098,0.00022257,2]
[312000852,1705540235877,-261.47420902,0.00022257,2]
[312000853,1705540235887,-500.0,0.00022257,2]
[312000854,1705540235896,-145.52579098,0.00022257,2]
[312000855,1705540235913,-354.47420902,0.00022257,2]
[312000856,1705540235922,-500.0,0.00022257,2]
[312000857,1705540235931,-274.77114392,0.00022257,2]
[312000858,1705540235954,-402.77,0.00022191,2]
[312000859,1705540235963,-81.33191491,0.00022257,2]
[312000860,1705540235974,-143.89694117,0.00022257,2]
[312000861,1705540235984,-634.7438402,0.00022257,2]
[312000862,1705540235993,-408.0493328,0.00022257,2]
[312000863,1705540236007,-91.9506672,0.00022257,2]
[312000864,1705540236017,-177.47664673,0.00022257,2]
[312000865,1705540236033,-322.52335327,0.00022257,2]
[312000866,1705540236043,-500.0,0.00022257,2]
[312000867,1705540236052,-500.0,0.00022257,2]
[312000868,1705540236061,-500.0,0.00022257,2]
[312000869,1705540236070,-500.0,0.00022257,2]
[312000870,1705540236079,-500.0,0.00022257,2]
[312000871,1705540236089,-500.0,0.00022257,2]
[312000872,1705540236098,-500.0,0.00022257,2]
[312000873,1705540236108,-500.0,0.00022257,2]
[312000874,1705540236117,-500.0,0.00022257,2]
[312000875,1705540236127,-500.0,0.00022257,2]
[312000876,1705540236136,-500.0,0.00022257,2]
[312000877,1705540236145,-500.0,0.00022257,2]
[312000878,1705540236155,-500.0,0.00022257,2]
[312000879,1705540236164,-500.0,0.00022257,2]
[312000880,1705540236174,-500.0,0.00022257,2]
[312000881,1705540236183,-500.0,0.00022257,2]
[312000882,1705540236193,-500.0,0.00022257,2]
[312000883,1705540236202,-500.0,0.00022257,2]
[312000884,1705540236212,-500.0,0.00022257,2]
[312000885,1705540236221,-500.0,0.00022257,2]
[312000886,1705540236230,-500.0,0.00022257,2]
[312000887,1705540236240,-500.0,0.00022257,2]
[312000888,1705540236249,-500.0,0.00022257,2]
[312000889,1705540236258,-500.0,0.00022257,2]
[312000890,1705540236268,-500.0,0.00022257,2]
[312000891,1705540236277,-500.0,0.00022257,2]
[312000892,1705540236286,-500.0,0.00022257,2]
[312000893,1705540236296,-500.0,0.00022257,2]
[312000894,1705540236311,-500.0,0.00022257,2]
[312000895,1705540236321,-508.37747601,0.00022257,2]
[312000896,1705540236330,-500.0,0.00022257,2]
[312000897,1705540236341,-500.0,0.00022257,2]
[312000898,1705540236351,-500.0,0.00022257,2]
[312000899,1705540236360,-500.0,0.00022257,2]
[312000900,1705540236369,-500.0,0.00022257,2]
[312000901,1705540236379,-500.0,0.00022257,2]
[312000902,1705540236389,-500.0,0.00022257,2]
[312000903,1705540236399,-500.0,0.00022257,2]
[312000904,1705540236409,-500.0,0.00022257,2]
[312000905,1705540236418,-500.0,0.00022257,2]
[312000906,1705540236427,-500.0,0.00022257,2]
[312000907,1705540236436,-283.28960972,0.00022257,2]
[312000908,1705540236446,-500.0,0.00022257,2]
[312000909,1705540236455,-500.0,0.00022257,2]
[312000910,1705540236465,-500.0,0.00022257,2]
[312000911,1705540236474,-500.0,0.00022257,2]
[312000912,1705540236483,-500.0,0.00022257,2]
[312000913,1705540236492,-500.0,0.00022257,2]
[312000914,1705540236502,-500.0,0.00022257,2]
[312000915,1705540236511,-500.0,0.00022257,2]
[312000916,1705540236521,-500.0,0.00022257,2]
[312000917,1705540236531,-500.0,0.00022257,2]
[312000918,1705540236540,-610.28,0.00022257,2]
[312000919,1705540236552,-500.0,0.00022257,2]
[312000920,1705540236561,-510.02,0.00022257,2]
[312000921,1705540236571,-500.0,0.00022257,2]
[312000922,1705540236580,-621.88880154,0.00022257,2]
[312000923,1705540236589,-590.23,0.00022257,2]
[312000924,1705540236598,-500.0,0.00022257,2]
[312000925,1705540236607,-585.42,0.00022257,2]
[312000926,1705540236616,-500.0,0.00022257,2]
[312000927,1705540236626,-500.0,0.00022257,2]
[312000928,1705540236635,-574.36,0.00022257,2]
[312000929,1705540236645,-500.0,0.00022257,2]
[312000930,1705540236654,-500.0,0.00022257,2]
[312000931,1705540236664,-617.35,0.00022257,2]
[312000932,1705540236673,-500.0,0.00022257,2]
[312000933,1705540236682,-627.71,0.00022257,2]
[312000934,1705540236691,-500.0,0.00022257,2]
[312000935,1705540236700,-558.28,0.00022257,2]
[312000936,1705540236710,-500.0,0.00022257,2]
[312000937,1705540236719,-500.0,0.00022257,2]
[312000938,1705540236728,-500.0,0.00022257,2]
[312000939,1705540236737,-632.72,0.00022257,2]
[312000940,1705540236746,-500.0,0.00022257,2]
[312000941,1705540236756,-500.0,0.00022257,2]
[312000942,1705540236765,-500.0,0.00022257,2]
[312000943,1705540236774,-500.0,0.00022257,2]
[312000944,1705540236783,-500.0,0.00022257,2]
[312000945,1705540236792,-500.0,0.00022257,2]
[312000946,1705540236802,-500.0,0.00022257,2]
[312000947,1705540236811,-500.0,0.00022257,2]
[312000948,1705540236821,-500.0,0.00022257,2]
[312000949,1705540236831,-585.87139535,0.00022257,2]
[312000950,1705540236841,-500.0,0.00022257,2]
[312000951,1705540236851,-160.19374603,0.00022257,2]
[312000952,1705540236861,-500.0,0.00022257,2]
[312000953,1705540236870,-500.0,0.00022257,2]
[312000954,1705540236880,-500.0,0.00022257,2]
[312000955,1705540236890,-500.0,0.00022257,2]
[312000956,1705540236902,-648.33,0.00022257,2]
[312000957,1705540236911,-500.0,0.00022257,2]
[312000958,1705540236921,-500.0,0.00022257,2]
[312000959,1705540236931,-610.66,0.00022257,2]
[312000960,1705540236941,-500.0,0.00022257,2]
[312000961,1705540236950,-500.0,0.00022257,2]
[312000962,1705540236960,-637.19,0.00022257,2]
[312000963,1705540236968,-500.0,0.00022257,2]
[312000964,1705540236977,-500.0,0.00022257,2]
[312000965,1705540236986,-500.0,0.00022257,2]
[312000966,1705540236995,-500.0,0.00022257,2]
[312000967,1705540237005,-500.0,0.00022257,2]
[312000968,1705540237015,-648.13,0.00022257,2]
[312000969,1705540237024,-500.0,0.00022257,2]
[312000970,1705540237034,-500.0,0.00022257,2]
[312000971,1705540237045,-500.0,0.00022257,2]
[312000972,1705540237055,-517.22,0.00022257,2]
[312000973,1705540237066,-500.0,0.00022257,2]
[312000974,1705540237075,-500.0,0.00022257,2]
[312000975,1705540237087,-500.0,0.00022257,2]
[312000976,1705540237098,-500.0,0.00022257,2]
[312000977,1705540237108,-500.0,0.00022257,2]
[312000978,1705540237117,-500.0,0.00022257,2]
[312000979,1705540237126,-500.0,0.00022257,2]
[312000980,1705540237136,-500.0,0.00022257,2]
[312000981,1705540237145,-500.0,0.00022257,2]
[312000982,1705540237153,-500.0,0.00022257,2]
[312000983,1705540237162,-628.81,0.00022257,2]
[312000984,1705540237171,-500.0,0.00022257,2]
[312000985,1705540237180,-516.76,0.00022257,2]
[312000986,1705540237191,-500.0,0.00022257,2]
[312000987,1705540237200,-500.0,0.00022257,2]
[312000988,1705540237209,-500.0,0.00022257,2]
[312000989,1705540237219,-500.0,0.00022257,2]
[312000990,1705540237229,-500.0,0.00022257,2]
[312000991,1705540237238,-500.0,0.00022257,2]
[312000992,1705540237248,-500.0,0.00022257,2]
[312000993,1705540237258,-609.62,0.00022257,2]
[312000994,1705540237267,-500.0,0.00022257,2]
[312000995,1705540237276,-502.65,0.00022257,2]
[312000996,1705540237285,-500.0,0.00022257,2]
[312000997,1705540237295,-595.92,0.00022257,2]
[312000998,1705540237307,-500.0,0.00022257,2]
[312000999,1705540237317,-500.0,0.00022257,2]
[312001000,1705540237327,-526.33,0.00022257,2]
[312001001,1705540237340,-500.0,0.00022257,2]
[312001002,1705540237353,-500.0,0.00022257,2]
[312001003,1705540237363,-506.84954021,0.00022257,2]
[312001004,1705540237372,-500.0,0.00022257,2]
[312001005,1705540237383,-500.0,0.00022257,2]
[312001006,1705540237393,-500.0,0.00022257,2]
[312001007,1705540237402,-500.0,0.00022257,2]
[312001009,1705540237412,-500.0,0.00022257,2]
[312001010,1705540237421,-500.0,0.00022257,2]
[312001011,1705540237430,-500.0,0.00022257,2]
[312001012,1705540237440,-500.0,0.00022257,2]
[312001013,1705540237449,-500.0,0.00022257,2]
[312001014,1705540237458,-500.0,0.00022257,2]
[312001015,1705540237468,-500.0,0.00022257,2]
[312001017,1705540237477,-500.0,0.00022257,2]
[312001019,1705540237487,-616.63,0.00022257,2]